bitfinex/quotes_ETHUSD_20251217
["timestamp","ask_amount","ask_price","bid_price","bid_amount"]
[1765947431644,0.0603,2937.7,2937.6,3.40413943]
[1765947431814,0.001,2937.7,2937.6,3.40413943]
[1765947432345,0.001,2937.7,2937.6,3.87443943]
[1765947432645,0.001,2937.7,2937.6,0.4703]
[1765947433242,0.001,2937.7,2937.6,3.87443943]
[1765947433537,0.001,2937.7,2937.6,0.4703]
[1765947434041,0.0646,2937.7,2937.5,3.40417709]
[1765947434635,0.0646,2937.7,2937.4,3.89383079]
[1765947434839,0.0646,2937.7,2937.4,3.40433079]
[1765947435011,0.4911,2937.7,2937.4,3.40433079]
[1765947435210,0.0593,2937.4,2937.3,3.40640333]
[1765947435738,0.0593,2937.6,2937.5,3.40425531]
[1765947435946,0.001,2937.7,2937.6,0.4703]
[1765947436316,0.001,2937.7,2937.6,0.9598]
[1765947436538,0.001,2937.7,2937.6,0.4703]
[1765947436728,0.001,2937.7,2937.6,3.87443943]
[1765947438956,0.001,2937.7,2937.6,4.36393943]
[1765947439456,0.001,2937.7,2937.6,5.1407589]
[1765947444183,0.001,2937.7,2937.6,5.5462629]
[1765947447891,0.0049,2937.5,2937.4,3.40434224]
[1765947448465,0.0049,2937.5,2937.3,0.002]
[1765947448668,0.0588,2937.4,2937.3,0.002]
[1765947448869,0.546,2937.4,2937.3,0.002]
[1765947449807,1.085,2937.4,2937.3,0.002]
[1765947450101,1.67106067,2937.4,2937.3,0.002]
[1765947450999,5.07543188,2937.4,2937.3,0.002]
[1765947452903,5.53981211,2937.4,2937.3,0.002]
[1765947459802,5.00081211,2937.4,2937.3,0.002]
[1765947460006,5.53981211,2937.4,2937.3,0.002]
[1765947460492,1.5964409,2937.4,2937.3,0.002]
[1765947460694,0.0588,2937.4,2937.3,0.002]
[1765947461126,6.46,2937.5,2937.3,0.002]
[1765947461328,0.4659,2937.7,2937.3,0.002]
[1765947461329,0.001,2937.7,2937.6,0.4613]
[1765947461514,0.001,2937.7,2937.6,0.9581]
[1765947461824,0.001,2937.7,2937.6,1.363604]
[1765947462026,0.001,2937.7,2937.6,1.97752507]
[1765947462924,0.001,2937.7,2937.6,5.3816645]
[1765947464219,0.001,2937.7,2937.6,4.4793605]
[1765947464417,0.001,2937.7,2937.6,3.86543943]
[1765947464936,0.001,2937.7,2937.6,4.36223943]
[1765947465603,0.001,2937.7,2937.6,3.86543943]
[1765947467824,0.0852,2937.7,2937.6,3.40413943]
[1765947468429,0.001,2937.7,2937.6,3.86543943]
[1765947471439,0.0858,2937.7,2937.5,3.40423268]
[1765947471736,0.0046,2937.6,2937.5,3.40423268]
[1765947472505,0.0046,2937.6,2937.3,0.50337727]
[1765947472819,0.001,2937.7,2937.6,0.9581]
[1765947473015,0.001,2937.7,2937.6,0.4613]
[1765947474769,0.0852,2937.7,2937.6,0.4613]
[1765947477814,0.001,2937.7,2937.6,0.4613]
[1765947479838,0.089,2937.7,2937.5,0.002]
[1765947480140,0.001,2937.7,2937.5,0.002]
[1765947480316,0.0917,2937.6,2937.5,0.002]
[1765947481557,0.001,2937.7,2937.5,0.002]
[1765947483249,0.001,2937.7,2937.5,0.4988]
[1765947483456,0.001,2937.7,2937.6,0.4613]
[1765947484154,0.001,2937.7,2937.6,0.9581]
[1765947484758,0.001,2937.7,2937.5,3.40620167]
[1765947484759,0.4611,2937.6,2937.5,0.002]
[1765947484939,0.5491,2937.6,2937.5,0.002]
[1765947485139,0.4611,2937.6,2937.5,0.002]
[1765947485452,0.001,2937.7,2937.5,0.002]
[1765947485950,0.4574,2937.6,2937.5,0.002]
[1765947488235,0.001,2937.7,2937.5,0.002]
[1765947490171,0.4921,2937.6,2937.5,0.002]
[1765947490768,0.001,2937.7,2937.5,0.002]
[1765947493247,0.001,2937.7,2937.6,0.4553]
[1765947493973,0.4888,2937.7,2937.6,0.4553]
[1765947494279,0.4888,2937.7,2937.5,0.002]
[1765947495373,0.4878,2937.6,2937.5,0.002]
[1765947503160,0.94483085,2937.6,2937.5,0.002]
[1765947503485,4.34897028,2937.6,2937.5,0.002]
[1765947503671,0.94483085,2937.6,2937.5,0.002]
[1765947503982,4.34897028,2937.6,2937.5,0.002]
[1765947504583,0.94483085,2937.6,2937.5,0.002]
[1765947505084,4.34897028,2937.6,2937.5,0.002]
[1765947505656,9.66431813,2937.6,2937.5,0.002]
[1765947505852,4.88797028,2937.6,2937.5,0.002]
[1765947506454,1.48383085,2937.6,2937.5,0.002]
[1765947507656,4.88797028,2937.6,2937.5,0.002]
[1765947516392,1.48383085,2937.6,2937.5,0.002]
[1765947516888,1.0884,2937.6,2937.5,0.002]
[1765947517093,0.5494,2937.6,2937.5,0.002]
[1765947517297,0.4878,2937.6,2937.5,0.002]
[1765947517496,3.95353943,2937.6,2937.5,0.002]
[1765947517986,0.5494,2937.6,2937.5,0.002]
[1765947518189,0.4878,2937.6,2937.5,0.002]
[1765947518493,0.001,2937.7,2937.5,0.002]
[1765947519164,0.066,2937.6,2937.5,0.002]
[1765947521196,3.94923943,2937.6,2937.5,0.002]
[1765947521394,4.35024542,2937.6,2937.5,0.002]
[1765947521773,0.066,2937.6,2937.5,0.002]
[1765947523804,0.001,2937.7,2937.6,0.4916]
[1765947524285,0.4877,2937.7,2937.5,0.002]
[1765947524474,0.4825,2937.6,2937.5,0.002]
[1765947526070,0.5493,2937.6,2937.5,0.002]
[1765947527346,0.4825,2937.6,2937.5,0.002]
[1765947527472,0.001,2937.7,2937.5,0.002]
[1765947528413,0.001,2937.7,2937.6,0.4916]
[1765947528724,0.001,2937.7,2937.6,0.9508]
[1765947529780,0.001,2937.7,2937.6,0.4916]
[1765947531444,0.001,2937.7,2937.5,0.002]
[1765947531445,0.0048,2937.6,2937.5,0.002]
[1765947532921,0.4881,2937.6,2937.5,0.002]
[1765947533551,0.0048,2937.6,2937.5,0.002]
[1765947535523,0.001,2937.7,2937.6,0.4916]
[1765947535832,0.067,2937.7,2937.5,0.002]
[1765947536449,0.001,2937.7,2937.6,0.4916]
[1765947537151,0.4877,2937.7,2937.5,0.002]
[1765947538450,0.001,2937.7,2937.5,0.002]
[1765947538657,0.001,2937.7,2937.6,0.4916]
[1765947539453,0.067,2937.7,2937.5,0.002]
[1765947540660,0.001,2937.7,2937.5,0.002]
[1765947540845,0.0702,2937.6,2937.5,0.002]
[1765947542328,11.10386543,2937.6,2937.5,0.002]
[1765947542625,14.50800486,2937.6,2937.5,0.002]
[1765947542829,0.5493,2936.6,2936.5,0.002]
[1765947543257,1.14941426,2936.6,2936.5,0.002]
[1765947543728,1.08681426,2936.6,2936.5,0.002]
[1765947544062,0.4867,2936.6,2936.5,0.002]
[1765947545359,0.6742,2936.8,2936.5,0.002]
[1765947545562,0.539,2936.8,2936.5,0.5001]
[1765947545935,0.539,2936.8,2936.5,0.002]
[1765947546457,0.1352,2937.0,2936.5,0.002]
[1765947546962,0.4898,2936.9,2936.5,0.002]
[1765947547548,0.95418023,2936.9,2936.5,0.002]
[1765947547853,1.45751035,2936.9,2936.5,0.002]
[1765947550458,0.99313012,2936.9,2936.5,0.002]
[1765947551502,3.90832266,2936.9,2936.5,0.002]
[1765947551783,0.95963012,2936.9,2936.5,0.5001]
[1765947551981,0.4563,2936.9,2936.5,0.5001]
[1765947552280,0.5491,2936.9,2936.5,0.5001]
[1765947552564,0.4563,2936.9,2936.5,3.90550512]
[1765947552734,0.4563,2936.9,2936.6,0.4981]
[1765947553547,1.00338023,2937.2,2936.6,0.4981]
[1765947553767,1.49315112,2937.2,2936.6,0.4981]
[1765947554177,4.43339247,2937.2,2936.6,0.4981]
[1765947554338,4.43339247,2937.2,2936.6,3.90338028]
[1765947554669,0.4898,2937.1,2936.5,0.407504]
[1765947554974,0.4898,2937.1,2936.6,3.40529784]
[1765947555335,0.4898,2937.1,2936.6,3.90339784]
[1765947557049,3.8945239,2937.1,2936.6,0.4981]
[1765947557851,3.8945239,2937.1,2936.6,3.90339596]
[1765947558971,3.4047239,2937.1,2936.6,3.40529596]
[1765947559271,3.8945239,2937.1,2936.5,3.81286355]
[1765947559765,3.8945239,2937.1,2936.5,0.407504]
[1765947559973,0.4898,2937.0,2936.6,3.40527354]
[1765947560576,4.92323926,2937.2,2936.6,3.40527354]
[1765947560743,7.83811505,2937.2,2936.5,3.8128745]
[1765947560943,0.4898,2937.1,2936.5,4.3109745]
[1765947563267,3.89452015,2937.1,2936.5,4.3109745]
[1765947565067,0.4898,2937.1,2936.5,4.3109745]
[1765947565271,3.89452693,2937.1,2936.5,4.3109745]
[1765947565993,3.40472693,2937.1,2936.5,3.4073705]
[1765947566164,1.02856781,2937.0,2936.6,0.4981]
[1765947566359,1.02856781,2937.0,2936.5,0.5001]
[1765947566360,0.4898,2936.9,2936.5,0.5001]
[1765947567051,0.4898,2936.9,2936.5,0.002]
[1765947568863,0.4898,2936.9,2936.5,0.5001]
[1765947569690,0.4898,2936.9,2936.5,0.002]
[1765947570691,3.40496566,2936.9,2936.5,0.002]
[1765947570898,0.4898,2936.9,2936.5,0.002]
[1765947571205,3.40496447,2936.9,2936.5,0.002]
[1765947571376,0.0812,2936.6,2936.5,0.002]
[1765947571699,0.567,2936.6,2936.5,0.002]
[1765947572197,0.0812,2936.6,2936.5,0.002]
[1765947573076,0.567,2936.6,2936.5,0.002]
[1765947573691,0.0812,2936.6,2936.5,0.002]
[1765947577699,0.001,2937.1,2936.6,0.4894]
[1765947577865,0.001,2937.1,2937.0,0.4878]
[1765947578292,0.0878,2937.1,2936.8,0.4894]
[1765947579929,0.0878,2937.1,2936.5,8.18531999]
[1765947580209,4.37608846,2937.1,2936.5,3.89672914]
[1765947581002,0.4803,2937.0,2936.5,3.89672914]
[1765947581205,0.40424713,2937.1,2936.6,0.4894]
[1765947581501,0.88844713,2937.1,2936.6,0.4894]
[1765947581901,0.40424713,2937.1,2936.6,0.4894]
[1765947582107,0.001,2937.1,2937.0,0.4878]
[1765947582676,0.4733,2937.1,2936.8,0.4894]
[1765947584116,0.4733,2937.1,2936.5,6.8128292]
[1765947584418,0.4733,2937.1,2936.6,0.4894]
[1765947585481,0.4733,2937.1,2936.8,0.4894]
[1765947587119,0.4733,2937.1,2936.7,3.40518268]
[1765947587320,0.4733,2937.1,2936.7,3.89458268]
[1765947587928,0.4733,2937.1,2936.6,0.4894]
[1765947588409,0.5719,2937.1,2936.6,0.4894]
[1765947588582,0.4733,2937.1,2936.6,0.4894]
[1765947589082,0.5719,2937.1,2936.6,0.4894]
[1765947589293,0.4733,2937.1,2936.6,0.4894]
[1765947589495,0.5719,2937.1,2936.6,0.4894]
[1765947589680,0.4733,2937.1,2936.6,0.4894]
[1765947590995,0.5719,2937.1,2936.6,3.89459096]
[1765947591314,0.5719,2937.1,2936.7,0.4894]
[1765947591611,0.4733,2937.1,2936.7,0.4894]
[1765947592016,0.5719,2937.1,2936.7,0.4894]
[1765947592224,0.5719,2937.1,2936.5,0.002]
[1765947592225,0.0986,2936.6,2936.5,0.002]
[1765947592593,4.34159153,2937.1,2936.5,0.4898]
[1765947592797,3.85739153,2937.1,2936.6,3.40529096]
[1765947593009,0.4842,2937.0,2936.6,0.4894]
[1765947593210,0.43415915,2936.9,2936.6,0.4894]
[1765947593405,0.45265359,2937.1,2936.6,0.4894]
[1765947593808,0.93685359,2937.1,2936.6,0.4894]
[1765947594231,4.34158754,2937.1,2936.6,0.4894]
[1765947594388,0.4842,2937.0,2936.6,0.4894]
[1765947594590,4.34158754,2937.1,2936.6,0.4894]
[1765947594804,0.43415875,2937.0,2936.6,0.4894]
[1765947595288,0.001,2937.1,2937.0,0.4878]
[1765947595691,0.4803,2937.0,2936.6,0.539]
[1765947596042,0.4803,2937.0,2936.6,3.40529793]
[1765947596394,0.001,2937.1,2936.7,0.4894]
[1765947596928,0.001,2937.1,2937.0,0.4878]
[1765947597106,0.4768879,2937.1,2936.8,0.4894]
[1765947597301,0.3900879,2937.1,2936.8,0.4894]
[1765947600331,0.3900879,2937.1,2936.7,0.4894]
[1765947600902,0.001,2937.1,2937.0,0.4878]
[1765947601300,0.001,2937.1,2936.5,0.002]
[1765947601301,0.4686,2936.6,2936.5,0.002]
[1765947601729,3.97619864,2936.6,2936.5,0.002]
[1765947602054,4.61203723,2936.6,2936.5,0.002]
[1765947602708,0.73813859,2936.6,2936.5,0.9792]
[1765947602912,1.0242,2937.1,2936.5,0.9792]
[1765947603414,3.88911333,2937.0,2936.5,0.9792]
[1765947603616,0.4842,2936.9,2936.5,0.9792]
[1765947603823,0.4842,2937.0,2936.5,0.9792]
[1765947604004,0.87869133,2936.9,2936.5,0.9792]
[1765947604425,7.34953654,2937.1,2936.5,0.9792]
[1765947604426,7.34953654,2937.1,2936.5,0.9705]
[1765947604635,0.4625,2937.0,2936.5,0.9705]
[1765947605505,3.51359864,2936.6,2936.5,0.002]
[1765947605730,3.97259864,2936.6,2936.5,0.002]
[1765947606749,3.51359864,2936.6,2936.5,0.002]
[1765947606951,4.71037705,2936.6,2936.5,0.002]
[1765947608817,5.17475728,2936.6,2936.5,0.002]
[1765947612850,5.17575728,2936.6,2936.5,0.002]
[1765947617455,9.95788026,2936.6,2936.5,0.002]
[1765947617963,10.0943918,2936.6,2936.5,0.002]
[1765947620854,10.0943918,2936.6,2936.4,0.002]
[1765947620855,0.46438023,2936.5,2936.4,0.002]
[1765947621165,2.76927585,2936.5,2936.4,0.002]
[1765947621562,2.90579438,2936.5,2936.4,0.002]
[1765947623290,6.31120898,2936.5,2936.4,0.002]
[1765947629103,11.09333196,2936.5,2936.4,0.002]
[1765947629904,11.09433196,2936.5,2936.4,0.002]
[1765947632562,0.6914,2935.7,2935.6,0.002]
[1765947633425,0.1424,2935.7,2935.4,0.002]
[1765947633710,0.4625,2935.3,2935.1,0.002]
[1765947633867,9.27714584,2935.2,2935.1,0.002]
[1765947634066,10.66648231,2935.2,2935.1,0.002]
[1765947634287,10.80306611,2935.2,2935.1,0.002]
[1765947634674,15.04618909,2935.2,2935.1,0.002]
[1765947634870,10.80306611,2935.2,2935.1,0.002]
[1765947636198,6.02094313,2935.2,2935.1,0.002]
[1765947636409,10.80306611,2935.2,2935.1,0.002]
[1765947636707,5.0175629,2935.2,2935.1,0.002]
[1765947636905,4.09260666,2935.2,2935.1,0.002]
[1765947637807,4.55698689,2935.2,2935.1,0.002]
[1765947638180,9.33910987,2935.2,2935.1,0.002]
[1765947639038,4.55698689,2935.2,2935.1,0.002]
[1765947641022,14.12123285,2935.2,2935.1,0.002]
[1765947641184,10.65246792,2935.2,2935.1,0.002]
[1765947641377,5.87034494,2935.2,2935.1,0.002]
[1765947641609,6.40934494,2935.2,2935.1,0.002]
[1765947642309,11.19146792,2935.2,2935.1,0.002]
[1765947643110,6.40934494,2935.2,2935.1,0.002]
[1765947643846,11.19146792,2935.2,2935.1,0.002]
[1765947644840,11.19246792,2935.2,2935.1,0.002]
[1765947645197,0.0579,2935.0,2934.9,0.002]
[1765947645410,5.79160321,2935.0,2934.9,0.002]
[1765947645606,0.636,2934.8,2934.7,0.002]
[1765947645799,6.01502298,2934.8,2934.7,0.002]
[1765947646310,6.15161424,2934.8,2934.7,0.002]
[1765947646516,6.76677566,2934.8,2934.7,0.002]
[1765947646721,10.17416287,2934.8,2934.7,0.002]
[1765947647233,5.39203989,2934.8,2934.7,0.002]
[1765947648334,0.46438023,2934.9,2934.7,0.002]
[1765947648637,0.4717,2934.8,2934.7,0.002]
[1765947648926,3.95728721,2934.8,2934.7,0.002]
[1765947651018,0.4915,2934.6,2934.4,0.002]
[1765947651229,0.46438023,2934.7,2934.4,0.002]
[1765947651230,6.33668236,2934.5,2934.4,0.002]
[1765947651827,6.47329414,2934.5,2934.4,0.002]
[1765947653000,5.09352756,2934.5,2934.4,0.002]
[1765947653834,0.0586,2934.0,2933.9,0.002]
[1765947654038,5.33330213,2934.0,2933.9,0.002]
[1765947654236,5.92053234,2934.0,2933.9,0.002]
[1765947654402,1.13303021,2934.0,2933.9,0.002]
[1765947655433,9.32884863,2934.0,2933.9,0.002]
[1765947655737,8.74161842,2934.0,2933.9,0.002]
[1765947656123,9.20599865,2934.0,2933.9,0.002]
[1765947656449,0.4915,2933.2,2932.7,0.002]
[1765947656605,0.6165,2933.1,2932.7,0.002]
[1765947656808,0.539,2933.1,2932.7,0.4594]
[1765947657132,1.56396297,2933.1,2932.7,0.002]
[1765947657332,4.97343266,2933.1,2932.7,0.002]
[1765947657541,5.46493266,2933.1,2932.7,0.002]
[1765947658128,4.43996969,2933.1,2932.7,0.002]
[1765947658422,2.05546297,2933.1,2932.7,0.002]
[1765947658623,2.0283432,2933.1,2932.7,0.4796]
[1765947658837,3.40947834,2933.0,2932.7,0.4796]
[1765947659240,0.0579,2932.8,2932.7,0.002]
[1765947659418,0.5451,2932.8,2932.7,0.002]
[1765947659752,3.95481085,2932.8,2932.7,0.002]
[1765947660314,0.0579,2932.8,2932.7,0.002]
[1765947660539,8.74231298,2932.8,2932.7,0.002]
[1765947660736,15.60434471,2932.8,2932.7,0.002]
[1765947660952,16.62953184,2932.8,2932.7,0.002]
[1765947661424,11.84202971,2932.8,2932.7,0.002]
[1765947661944,16.62953184,2932.8,2932.7,0.002]
[1765947662125,11.84202971,2932.8,2932.7,0.002]
[1765947662832,16.62953184,2932.8,2932.7,0.002]
[1765947663331,0.46438023,2932.7,2932.0,0.002]
[1765947663545,22.90385354,2932.8,2932.0,0.002]
[1765947663546,5.33670213,2932.1,2932.0,0.002]
[1765947663750,5.87670213,2932.1,2932.0,0.002]
[1765947664116,9.88832407,2932.1,2932.0,0.002]
[1765947664316,0.6915,2931.6,2931.5,0.002]
[1765947664548,1.2315,2931.6,2931.5,0.002]
[1765947664752,0.4834,2931.5,2930.9,0.003]
[1765947664911,5.79708236,2931.0,2930.9,0.003]
[1765947665239,1.54958023,2931.0,2930.9,0.003]
[1765947665618,2.14958023,2931.0,2930.9,0.003]
[1765947665813,0.4792,2931.4,2930.9,0.003]
[1765947666015,1.00438023,2931.5,2930.9,3.90650025]
[1765947666216,0.7424,2931.6,2931.1,0.1967]
[1765947666424,0.7424,2931.6,2931.1,0.6883]
[1765947666733,0.1424,2931.6,2931.0,0.39095003]
[1765947666957,0.1424,2931.9,2931.2,0.4916]
[1765947667131,3.95041699,2932.2,2931.5,0.4936]
[1765947667452,0.54,2932.2,2931.5,0.4936]
[1765947667623,0.1424,2932.3,2931.5,0.4936]
[1765947667624,0.6824,2932.3,2931.5,0.4936]
[1765947667819,0.1424,2932.3,2931.5,0.4936]
[1765947668050,0.4916,2932.7,2931.9,0.4916]
[1765947668372,0.54,2933.2,2932.3,0.405504]
[1765947668651,0.54,2933.2,2932.1,0.1967]
[1765947668652,0.54,2933.2,2932.4,0.405504]
[1765947668817,1.00096883,2933.2,2932.5,0.4916]
[1765947669022,3.4092503,2933.2,2932.5,0.4916]
[1765947669222,6.8185006,2933.2,2932.5,0.4916]
[1765947669444,6.8185006,2933.2,2932.1,0.1967]
[1765947669445,0.4834,2933.1,2932.3,0.405504]
[1765947669618,0.94778023,2933.1,2932.3,0.897104]
[1765947669823,0.94778023,2933.1,2932.3,0.4916]
[1765947670074,4.433946,2933.0,2932.2,3.41040856]
[1765947670420,0.541,2933.0,2932.2,7.31241712]
[1765947670647,0.541,2933.0,2932.3,0.4916]
[1765947671251,3.40927832,2933.2,2932.3,0.4916]
[1765947671252,0.46438023,2933.2,2932.3,0.4916]
[1765947671457,0.6812,2933.3,2932.3,0.4916]
[1765947671752,0.46438023,2933.2,2932.3,0.4916]
[1765947671954,0.46438023,2933.2,2932.4,0.73124171]
[1765947671955,0.94778023,2933.2,2932.4,0.73124171]
[1765947672252,3.4093621,2933.1,2932.3,0.4916]
[1765947672442,3.4093621,2933.1,2932.3,3.90187035]
[1765947672642,6.8187242,2933.1,2932.3,0.4916]
[1765947672848,0.4834,2932.9,2931.8,0.1967]
[1765947673030,0.4834,2932.7,2931.8,0.6883]
[1765947673225,0.4834,2932.7,2931.8,0.1967]
[1765947673439,0.541,2932.6,2932.2,0.4916]
[1765947674138,0.541,2932.6,2931.9,3.90232606]
[1765947674338,3.95095702,2932.6,2931.9,3.90232606]
[1765947674538,0.541,2932.6,2932.1,0.002]
[1765947674733,3.40986375,2932.7,2932.1,0.002]
[1765947674940,3.40986375,2932.7,2932.1,0.4936]
[1765947675960,0.066,2932.2,2932.1,0.002]
[1765947676257,0.53038023,2932.2,2932.1,0.002]
[1765947676463,0.46438023,2932.3,2932.1,0.002]
[1765947676958,0.46438023,2932.2,2932.1,0.002]
[1765947677332,0.53448023,2932.2,2932.1,0.002]
[1765947678760,3.94488879,2932.2,2932.1,0.002]
[1765947679058,4.81446808,2932.2,2932.1,0.002]
[1765947679629,4.33936808,2932.2,2932.1,0.002]
[1765947679834,0.92895952,2932.2,2932.1,0.002]
[1765947680067,4.33936808,2932.2,2932.1,0.002]
[1765947680463,4.81446808,2932.2,2932.1,0.002]
[1765947682077,4.34036808,2932.2,2932.1,0.002]
[1765947682243,4.48688879,2932.2,2932.1,0.002]
[1765947682444,4.96198879,2932.2,2932.1,0.002]
[1765947683078,4.48688879,2932.2,2932.1,0.002]
[1765947684075,1.07648023,2932.2,2932.1,0.002]
[1765947684259,5.7516984,2932.2,2932.1,0.002]
[1765947684461,5.2765984,2932.2,2932.1,0.002]
[1765947684659,5.7516984,2932.2,2932.1,0.002]
[1765947685477,0.1424,2931.6,2931.5,0.002]
[1765947685775,0.2084,2931.6,2931.5,0.002]
[1765947686158,0.6876,2931.6,2931.5,0.002]
[1765947686558,0.46438023,2931.7,2931.5,0.002]
[1765947686779,0.0701,2931.6,2931.5,0.002]
[1765947687254,4.41630896,2931.8,2931.5,0.002]
[1765947687457,0.0701,2931.6,2931.5,0.002]
[1765947687660,0.066,2931.0,2930.9,0.003]
[1765947687886,0.4601,2929.2,2929.1,0.1367713]
[1765947688189,0.543,2929.5,2929.1,0.1967]
[1765947688391,0.6831,2929.9,2929.2,0.4916]
[1765947688556,3.41320226,2929.8,2929.2,0.4916]
[1765947688758,3.41320226,2929.8,2928.7,0.4916]
[1765947688759,0.4834,2929.6,2928.7,0.4916]
[1765947689053,0.46438023,2929.7,2928.0,0.793]
[1765947689054,0.4834,2929.4,2928.2,0.4916]
[1765947689271,0.4834,2929.4,2928.0,0.7416]
[1765947689480,0.4834,2929.2,2928.0,4.15681068]
[1765947689779,0.543,2929.1,2928.0,0.7416]
[1765947690083,0.4834,2929.0,2928.0,0.7416]
[1765947690250,1.0264,2928.9,2928.0,3.6652109]
[1765947690444,0.4834,2928.9,2928.0,3.66528836]
[1765947690680,3.89773144,2928.9,2928.1,3.61186133]
[1765947690879,0.46438023,2929.0,2928.1,7.52064523]
[1765947691191,1.02646395,2929.2,2928.2,0.4916]
[1765947691352,0.4834,2929.1,2928.2,0.4916]
[1765947691547,1.02639371,2929.4,2928.2,0.4916]
[1765947691765,0.543,2929.2,2928.2,0.4916]
[1765947692687,0.543,2929.2,2928.3,6.8299013]
[1765947692851,0.543,2929.5,2928.4,0.4916]
[1765947693051,3.41289664,2930.1,2929.2,0.4916]
[1765947693281,0.44392966,2930.0,2929.2,0.4916]
[1765947694050,3.95575503,2930.2,2929.2,0.4916]
[1765947694250,3.41275503,2930.2,2929.2,0.4916]
[1765947694483,3.95563584,2930.3,2929.2,0.4916]
[1765947694681,0.543,2930.2,2929.2,0.4916]
[1765947694862,3.41253899,2930.4,2929.3,6.82756972]
[1765947695054,1.00738023,2930.3,2929.4,0.4548]
[1765947695253,0.46438023,2930.3,2929.4,0.4548]
[1765947696884,0.46438023,2930.1,2929.4,3.86839926]
[1765947697085,0.46438023,2930.1,2929.4,3.41359926]
[1765947697290,0.1401,2929.9,2929.1,0.1967]
[1765947697786,0.1401,2929.9,2929.3,3.4137122]
[1765947698257,0.1401,2929.9,2929.4,3.41365685]
[1765947698655,0.1401,2929.9,2929.4,3.41565685]
[1765947698883,0.18665853,2929.8,2929.4,0.002]
[1765947700402,0.72898529,2930.0,2929.4,0.002]
[1765947700551,0.543,2930.3,2929.4,0.4829]
[1765947700995,0.543,2930.3,2929.5,3.4135518]
[1765947700996,0.46438023,2930.1,2929.5,3.4135518]
[1765947701553,0.46438023,2930.1,2929.4,0.002]
[1765947701760,0.91888023,2930.1,2929.4,0.002]
[1765947701954,0.77443529,2930.0,2929.4,3.4156457]
[1765947702756,0.1401,2929.9,2929.4,0.002]
[1765947702962,0.0945,2929.5,2929.4,0.002]
[1765947704303,0.5454,2929.5,2929.4,0.002]
[1765947704591,0.60448023,2929.9,2929.4,0.002]
[1765947704796,0.40175161,2929.8,2929.4,0.002]
[1765947704974,0.85625161,2929.8,2929.4,0.002]
[1765947705293,0.1401,2929.9,2929.4,0.002]
[1765947705587,0.46438023,2930.1,2929.4,0.4829]
[1765947705914,3.87728374,2930.1,2929.4,0.4829]
[1765947706694,3.41290351,2930.1,2929.4,0.4829]
[1765947706894,0.0945,2929.5,2929.4,0.002]
[1765947707260,0.5454,2929.5,2929.4,0.002]
[1765947707465,0.0945,2929.5,2929.4,0.002]
[1765947707667,3.5080518,2929.5,2929.4,0.002]
[1765947707891,3.9589518,2929.5,2929.4,0.002]
[1765947708190,4.71019141,2929.5,2929.4,0.002]
[1765947708490,1.29663961,2929.5,2929.4,0.002]
[1765947708694,3.9589518,2929.5,2929.4,0.002]
[1765947709061,0.5454,2929.5,2929.4,0.002]
[1765947710184,3.9589518,2929.5,2929.4,0.002]
[1765947710359,0.5454,2929.5,2929.4,0.002]
[1765947710767,0.0945,2929.5,2929.4,0.002]
[1765947711897,3.87285557,2929.5,2929.4,0.002]
[1765947712102,4.7881358,2929.5,2929.4,0.002]
[1765947712503,0.0925,2928.3,2928.1,0.002]
[1765947712680,0.4545,2928.1,2926.8,6.83340166]
[1765947712879,0.4545,2928.7,2927.2,0.4809]
[1765947713083,0.46438023,2928.4,2927.4,0.4809]
[1765947713480,0.46438023,2928.4,2927.2,3.41623335]
[1765947713481,0.4545,2928.3,2927.2,3.41623335]
[1765947713680,0.4545,2928.1,2926.9,0.545]
[1765947713887,0.545,2928.2,2927.0,3.41645644]
[1765947713888,0.2327,2927.1,2927.0,3.41645644]
[1765947714289,0.2327,2927.1,2926.9,3.41657571]
[1765947714476,0.2327,2927.1,2926.9,3.41657928]
[1765947714681,0.2327,2927.1,2926.7,0.6]
[1765947714886,0.549,2926.8,2926.7,0.6]
[1765947715172,0.4529,2926.8,2926.7,0.6]
[1765947715407,4.41460083,2926.8,2926.7,0.6]
[1765947715592,5.29381841,2926.8,2926.7,0.6]
[1765947715776,1.33211758,2926.8,2926.7,0.6]
[1765947715982,5.21319864,2926.8,2926.7,0.6]
[1765947716440,0.1401,2926.0,2924.8,0.6]
[1765947716706,0.546,2925.9,2925.2,0.4809]
[1765947717015,0.546,2926.6,2925.4,0.4809]
[1765947717311,0.4545,2926.3,2925.1,0.1863]
[1765947717513,0.4545,2926.3,2925.1,0.6672]
[1765947717685,0.4545,2926.1,2924.9,0.11238568]
[1765947718009,3.41658409,2926.9,2925.7,0.4809]
[1765947718211,3.8319125,2926.9,2925.9,0.1863]
[1765947718409,0.46438023,2926.8,2925.9,0.1863]
[1765947718587,4.2864125,2926.9,2925.9,0.1863]
[1765947718588,4.8334125,2926.9,2925.9,0.1863]
[1765947718920,0.46438023,2926.8,2925.9,0.6672]
[1765947719125,0.4545,2926.7,2925.8,0.73170567]
[1765947719432,3.87143432,2926.6,2925.7,3.60427463]
[1765947719738,3.87143432,2926.6,2925.7,0.1863]
[1765947719951,3.41693432,2926.6,2925.7,3.60426686]
[1765947720112,0.88563768,2926.8,2925.8,0.4809]
[1765947720427,3.55847414,2927.0,2926.2,0.4809]
[1765947720630,1.1435,2927.0,2926.1,0.1863]
[1765947720818,0.1402,2927.1,2926.3,0.405504]